Cogmind - Beta 13 @@@ ROGUE MODE // 2024.04.14 @ 16:12:48 Player: Bearly Playable Result: Destroyed by S-27 Virus with Autogun Performance ------------- Evolutions (4) 2000 Regions Visited (8) 1600 Robots Destroyed (48) 240 Value Destroyed (1298) 1298 Prototype IDs (26) 520 Alien Tech Used (0) 0 Bonus (669) 669 TOTAL SCORE: 6327 Bonus ------- High Alert Combat Kills 11 Follower Combat Kills 358 Aligned with FarCom 300 Cogmind --------- Core Integrity 0/850 Matter 283/300 Energy 95/100 System Corruption 3% Temperature Cool (0) Movement Core (150) Ox2 Location -6/Factory Parts ------- > --- POWER (1) -------- (None) > --- PROPULSION (4) --- (None) > --- UTILITY (8) ------ (None) > --- WEAPON (2) ------- Heavy Flak Cannon > --- INVENTORY (5) ---- Faulty Improved Cesium-ion Thruster Improved Propulsion Shielding Peak State ------------ > --- POWER ------------ Light Nuclear Core > --- PROPULSION ------- VTOL Module VTOL Module VTOL Module Improved Cesium-ion Thruster > --- UTILITY ---------- Improved Melee Analysis Suite Core Analyzer Advanced ECM Suite Improved Shield Generator Hacking Suite Component Analysis Suite > --- WEAPON ----------- Longsword +1 > --- INVENTORY -------- Light Nuclear Core Improved Propulsion Shielding Authchip [Processor] [Rating: 46] Favorites ----------- Power Light Nuclear Core Engine Light Ion Engine Power Core Light Nuclear Core Propulsion Flight Unit Leg Aluminum Leg Wheel Wheel Hover Unit Cooled Aerolev Unit Flight Unit Flight Unit Utility Hacking Suite Device ECM Suite Storage Small Storage Unit Processor Core Analyzer Hackware Hacking Suite Protection Improved Propulsion Shielding Weapon Longsword +1 Energy Gun Particle Gun Ballistic Gun Assault Rifle Ballistic Cannon Heavy Flak Cannon Special Weapon Mining Laser Slashing Weapon Longsword +1 Build | -11 -10 -10 -10 -9 -8 -8 -7 -6 ------- Run | Yrd Mat Min Exi Min Mat Sto Fac Fac Slots Evolved 8 | . . . . . 4 . 2 2 Power . | . . . . . . . . . Propulsion 2 | . . . . . 2 . . . Utility 6 | . . . . . 2 . 2 2 Weapon . | . . . . . . . . . Parts Attached 70 | 8 9 1 1 2 7 18 21 3 Power 13 | 1 1 1 . . 2 5 3 . Engine 6 | 1 1 1 . . 1 2 . . Core 7 | . . . . . 1 3 3 . Reactor . | . . . . . . . . . Propulsion 22 | 3 3 . . 2 2 7 5 . Treads . | . . . . . . . . . Leg 3 | 2 1 . . . . . . . Wheel 1 | 1 . . . . . . . . Hover 1 | . . . . . . 1 . . Flight 17 | . 2 . . 2 2 6 5 . Utility 16 | 1 1 . . . 2 4 8 . Device 7 | . 1 . . . 1 . 5 . Storage 2 | 1 . . . . . 1 . . Processor 2 | . . . . . 1 . 1 . Hackware 3 | . . . . . . 3 . . Protection 2 | . . . . . . . 2 . Artifact . | . . . . . . . . . Weapon 19 | 3 4 . 1 . 1 2 5 3 Energy Gun 5 | 1 2 . . . . 1 1 . Energy Cannon . | . . . . . . . . . Ballistic Gun 4 | 2 2 . . . . . . . Ballistic Cannon 1 | . . . . . . . . 1 Launcher . | . . . . . . . . . Special Weapon 3 | . . . . . 1 1 1 . Impact Weapon . | . . . . . . . . . Slashing Weapon 6 | . . . 1 . . . 3 2 Piercing Weapon . | . . . . . . . . . Special Melee Weapon . | . . . . . . . . . Unidentified Prototypes 4 | . . . 1 . . 1 2 . Parts Lost 32 | . . . . 2 1 12 6 11 Power 4 | . . . . . . 2 1 1 Propulsion 16 | . . . . 2 1 7 3 3 Utility 9 | . . . . . . 2 2 5 Weapon 3 | . . . . . . 1 . 2 Highest Loss Streak 9 | . . . . 1 1 5 3 9 To Critical Strikes 1 | . . . . . . . 1 . Average Slot Usage (%) 70 | . 92 85 81 68 72 79 56 43 Engine 4 | . 12 14 14 14 3 . . . Core 3 | . . . . . 6 5 4 4 Leg 2 | . 22 . . . . . . . Flight 19 | . 5 28 28 25 33 25 14 12 Device 8 | . 10 14 14 14 12 3 7 9 Storage 2 | . 11 . . . . 2 . . Processor 7 | . . . . . 3 9 13 8 Hackware 7 | . . . . . . 17 7 5 Ballistic Gun 6 | . 24 28 19 . . . . . Slashing Weapon 5 | . . . 4 14 9 9 6 1 Naked Turns 12 | . . . . . . . . 12 Heaviest Build 16 | 12 15 8 9 8 12 16 12 9 Greatest Support 20 | 20 20 8 8 8 16 16 13 9 Greatest Overweight (x) 2 | . 1 . 1 . . 1 2 2 Average Overweight (x) . | . . . . . . . . . Largest Inventory Capacity 8 | 8 8 5 5 5 5 8 8 5 Average Capacity 5 | 6 7 5 5 5 5 5 5 5 Most Carried 8 | 5 8 5 5 5 4 8 8 5 Average Carried 4 | 3 3 4 4 4 2 5 5 4 Final Capacity 8 | 8 5 5 5 5 5 8 5 5 Final Carried 8 | 2 5 5 5 5 3 8 5 2 Class Distribution -------------------- 49% | Mutant 24% | Scavenger-Sprinter 22% | Scavenger-Mutant Dominant Class ---------------- Mutant | -10/Materials Mutant | -10/Mines Mutant | -10/Exiles Mutant | -9/Mines Scavenger-Sprinter | -8/Materials Scavenger-Mutant | -8/Storage Scavenger-Sprinter | -7/Factory Scavenger-Sprinter | -6/Factory Resources | -11 -10 -10 -10 -9 -8 -8 -7 -6 ----------- Run | Yrd Mat Min Exi Min Mat Sto Fac Fac Matter Collected 991 | 241 230 62 . 38 . 230 175 15 Remotely . | . . . . . . . . . Salvage Created 1874 | . 233 159 . 142 . 603 429 308 Parts 95 | . 13 4 . 11 . 39 20 8 Haulers Intercepted 1 | . . . . . . 1 . . Recyclers Shooed 5 | . 3 2 . . . . . . Parts Field Recycled . | . . . . . . . . . Retrieved Matter . | . . . . . . . . . Parts Self-Destructed . | . . . . . . . . . Prevented . | . . . . . . . . . Kills | -11 -10 -10 -10 -9 -8 -8 -7 -6 ------- Run | Yrd Mat Min Exi Min Mat Sto Fac Fac Combat Hostiles Destroyed 36 | . 5 . . 6 . 12 8 5 Melee 30 | . . . . 6 . 11 8 5 Guns 5 | . 5 . . . . . . . AOE 1 | . . . . . . 1 . . Classes Destroyed 9 | . 3 . . . . 5 1 . Worker 3 | . . . . . . 2 1 . Builder 1 | . . . . . . 1 . . Hauler 1 | . . . . . . 1 . . Recycler 4 | . 1 2 . . . . 1 . Operator 3 | . . . . . . 2 1 . Swarmer 17 | . 3 . . 4 . 5 4 1 Grunt 14 | . 2 . . 2 . 5 2 3 Sentry 3 | . . . . . . 2 . 1 Programmer 2 | . . . . . . . 2 . Best Kill Streak 5 | . 3 1 . 4 . 5 5 4 Combat Bots Only 4 | . 3 . . 4 . 4 4 4 Max Kills in Single Turn 1 | . 1 1 . 1 . 1 1 1 Gunslinging . | . . . . . . . . . Exploded 1 | . . . . . . 1 . . Melee 1 | . . . . 1 . 1 1 1 Uniques/NPCs Destroyed . | . . . . . . . . . Combat | -11 -10 -10 -10 -9 -8 -8 -7 -6 -------- Run | Yrd Mat Min Exi Min Mat Sto Fac Fac Hostile Shots Fired 426 | . 41 7 . 20 9 119 58 172 Missed 171 | . 15 6 . 9 5 36 24 76 Damage Taken 3043 | . 255 7 . 98 55 971 437 1220 Core 1660 | . 35 . . 34 13 488 233 857 Absorbed by Shields . | . . . . . . . . . Regen/Repaired (Parts) 23 | . . . . . . 23 . . Core Remaining (%) 61 | 100 . . . 72 . 8 66 . Volleys Fired 48 | . 23 11 2 . . 10 1 1 Largest 2 | . 2 2 2 . . 1 1 1 Hottest 100 | . 85 40 40 . . 100 5 53 Shots Fired 84 | . 46 22 4 . . 10 1 1 Gun 72 | . 46 22 4 . . . . . Cannon 1 | . . . . . . . . 1 Launcher . | . . . . . . . . . Special 11 | . . . . . . 10 1 . Kinetic 63 | . 36 22 4 . . . . 1 Thermal 20 | . 10 . . . . 10 . . Explosive . | . . . . . . . . . Electromagnetic . | . . . . . . . . . Robot Hit Streak 6 | . 5 6 . . . . . 1 Robot Miss Streak 4 | . 4 3 . . . . . 3 Penetration Max . | . . . . . . . . . Secondary Targets 1 | . 1 . . . . . . . Max Gunslinging Chain 1 | . 1 . . . . . . . Shots Hit Robots 115 | . 29 12 . 8 . 26 22 18 Core Hits 51 | . 10 4 . 4 . 18 5 10 Critical Kills . | . . . . . . . . . Critical Parts Destroyed . | . . . . . . . . . Critical Strikes 5 | . . . . 1 . 1 1 2 Sever 5 | . . . . 1 . 1 1 2 Melee Attacks 92 | . . . . 9 . 41 23 19 Impact . | . . . . . . . . . Slashing 92 | . . . . 9 . 41 23 19 Piercing . | . . . . . . . . . Sneak Attacks 11 | . . . . . . 8 3 . Combat Hostiles 1 | . . . . . . 1 . . Follow-up Attacks . | . . . . . . . . . Damage Inflicted 4764 | . 399 135 . 357 . 1757 1239 877 Guns 534 | . 399 135 . . . . . . Cannons 15 | . . . . . . . . 15 Explosions 38 | . . . . . . 38 . . Melee 4131 | . . . . 357 . 1719 1239 816 Ramming 46 | . . . . . . . . 46 Kinetic 460 | . 310 135 . . . . . 15 Thermal 89 | . 89 . . . . . . . Explosive 38 | . . . . . . 38 . . Electromagnetic . | . . . . . . . . . Impact . | . . . . . . . . . Slashing 4131 | . . . . 357 . 1719 1239 816 Piercing . | . . . . . . . . . Highest Corruption 3 | . 2 2 2 2 . . . 3 Average Corruption 2 | . 2 2 2 2 . . . 3 Corruption Purged . | . . . . . . . . . Corruption Blocked . | . . . . . . . . . Effects 10 | . 5 3 1 1 . . . . Message Errors 2 | . 1 1 . . . . . . Matter Fused 2 | . . 1 1 . . . . . Heat Flow Errors 1 | . 1 . . . . . . . Energy Discharges 2 | . 1 . . 1 . . . . Parts Rejected 1 | . 1 . . . . . . . Data Loss (minor) 2 | . 1 1 . . . . . . Overload Shots . | . . . . . . . . . Overflow Damage 456 | . . . . 50 . 56 311 39 Projectiles . | . . . . . . . . . Explosions . | . . . . . . . . . Melee 456 | . . . . 50 . 56 311 39 Knockbacks 1 | . . . . . . . . 1 Impact . | . . . . . . . . . Kinetic 1 | . . . . . . . . 1 Secondary . | . . . . . . . . . Self-Inflicted Damage 21 | . . . . . . . . 21 Shots . | . . . . . . . . . Rammed 10 | . . . . . . . . 10 Targets Rammed 11 | . 1 . . . . . . 10 Kicked 1 | . 1 . . . . . . . Crushed . | . . . . . . . . . Highest Temperature 180 | . 180 8 6 . . 94 . 7 Average Temperature 43 | . 58 3 4 . . 48 . 7 Received Heat Transfer 790 | . 84 . . 18 9 207 135 337 Siege Activations . | . . . . . . . . . Robots Corrupted . | . . . . . . . . . Combat Hostiles . | . . . . . . . . . Parts Fried . | . . . . . . . . . Impact Corruptions . | . . . . . . . . . Robots Melted . | . . . . . . . . . Combat Hostiles . | . . . . . . . . . Parts Melted . | . . . . . . . . . Heat Transferred 222 | . 222 . . . . . . . Parts Sabotaged . | . . . . . . . . . Parts Stolen . | . . . . . . . . . Parts Stripped . | . . . . . . . . . Power Chain Reactions . | . . . . . . . . . Alert | -11 -10 -10 -10 -9 -8 -8 -7 -6 ------- Run | Yrd Mat Min Exi Min Mat Sto Fac Fac Peak Influence 624 | . 191 171 . 128 49 624 312 202 Initial 212 | . . . . . 49 16 212 92 Average 152 | . 63 48 . 84 45 217 195 107 Maximum Alert Level 2 | . . . . . . 2 1 1 Low Security (%) 74 | 100 100 100 . 100 100 61 56 96 Level 1 16 | . . . . . . 7 43 3 Level 2 8 | . . . . . . 31 . . Level 3 . | . . . . . . . . . Level 4 . | . . . . . . . . . Level 5 . | . . . . . . . . . High Security . | . . . . . . . . . Max Security . | . . . . . . . . . Squads Dispatched 8 | . . . . . 1 2 5 . Investigation 3 | . . . . . . . 3 . Extermination 1 | . . . . . . . 1 . Reinforcement 3 | . . . . . 1 2 . . Assault . | . . . . . . . . . Garrison 1 | . . . . . . . 1 . Intercept . | . . . . . . . . . Searches Triggered . | . . . . . . . . . Construction Impeded . | . . . . . . . . . Haulers Reinforced . | . . . . . . . . . Active Scanning Responses . | . . . . . . . . . Cargo Convoy Interrupts . | . . . . . . . . . Stealth | -11 -10 -10 -10 -9 -8 -8 -7 -6 --------- Run | Yrd Mat Min Exi Min Mat Sto Fac Fac Distress Signals 5 | . 1 . . . 2 1 1 . Communications Jammed . | . . . . . . . . . Distress Signals . | . . . . . . . . . Times Spotted 102 | . 15 8 . 6 5 28 24 16 Peak Tracking Total 13 | . 4 3 . 4 5 13 7 10 Tactical Retreats 18 | . 1 2 . . 1 5 7 2 Traps | -11 -10 -10 -10 -9 -8 -8 -7 -6 ------- Run | Yrd Mat Min Exi Min Mat Sto Fac Fac Traps Triggered 3 | . 1 . . . . 1 1 . Indirectly . | . . . . . . . . . Trap Hack Attempts . | . . . . . . . . . Triggered . | . . . . . . . . . Disarmed . | . . . . . . . . . Reprogrammed 4 | . . . . . . 4 . . Reused 3 | . . . . . . 3 . . Traps Extracted . | . . . . . . . . . Installed . | . . . . . . . . . Triggered 3 | . . . . . . 3 . . Objects Rigged 2 | . . . . . . 2 . . Exploded 1 | . . . . . . 1 . . Machines | -11 -10 -10 -10 -9 -8 -8 -7 -6 ---------- Run | Yrd Mat Min Exi Min Mat Sto Fac Fac Machines Disabled 2 | . . . . . . 2 . . Max in Single Turn 1 | . . . . . . 1 . . Garrison Access 1 | . . . . . . 1 . . Machines Repaired . | . . . . . . . . . Machines Dismantled . | . . . . . . . . . Machines Sabotaged . | . . . . . . . . . Overloaded Fab Kills . | . . . . . . . . . Hacking | -11 -10 -10 -10 -9 -8 -8 -7 -6 --------- Run | Yrd Mat Min Exi Min Mat Sto Fac Fac Machines Accessed 28 | . 2 . 5 1 . 11 9 . Terminals 16 | . 2 . . 1 . 8 5 . Fabricators 1 | . . . . . . . 1 . Repair Stations 2 | . . . . . . 1 1 . Recycling Units 1 | . . . . . . 1 . . Scanalyzers 1 | . . . . . . . 1 . Garrison Access 2 | . . . . . . 1 1 . Total Hacks 112 | . 5 . 50 2 . 34 21 . Successful 86 | . 2 . 50 1 . 19 14 . Failed 26 | . 3 . . 1 . 15 7 . Catastrophic 5 | . 1 . . . . 2 2 . Database Lockouts . | . . . . . . . . . Manual 16 | . 4 . 1 . . 8 3 . Terminals 40 | . 5 . . 2 . 24 9 . Fabricators 3 | . . . . . . . 3 . Repair Stations 6 | . . . . . . 3 3 . Recycling Units 1 | . . . . . . 1 . . Scanalyzers 2 | . . . . . . . 2 . Garrison Access 10 | . . . . . . 6 4 . Terminal Hacks 67 | . 1 . 50 1 . 10 5 . Record 53 | . . . 49 . . 3 1 . Part Schematic 1 | . . . . . . 1 . . Open Door 3 | . . . . . . 3 . . Open DSF 2 | . . . . . . . 2 . Level Access Points 1 | . . . . 1 . . . . Branch Access Points 2 | . 1 . . . . 1 . . Unreport Threat 1 | . . . . . . . 1 . Locate Traps 1 | . . . . . . 1 . . Reprogram Traps 1 | . . . . . . 1 . . Zone Layout 1 | . . . . . . . 1 . Derelict Proto ID Bank 1 | . . . 1 . . . . . Fabricator Hacks 3 | . . . . . . . 3 . Load Schematic 2 | . . . . . . . 2 . Build 1 | . . . . . . . 1 . Repair Station Hacks 4 | . . . . . . 3 1 . Scan Component 2 | . . . . . . 1 1 . Repair 1 | . . . . . . 1 . . Refit 1 | . . . . . . 1 . . Recycling Unit Hacks 1 | . . . . . . 1 . . Report Inventory 1 | . . . . . . 1 . . Scanalyzer 2 | . . . . . . . 2 . Insert Component 2 | . . . . . . . 2 . Garrison Access Hacks 2 | . . . . . . 2 . . Seal Access 1 | . . . . . . 1 . . Coupler Status 1 | . . . . . . 1 . . Unauthorized Hacks 7 | . 1 . . . . 3 3 . Terminals 7 | . 1 . . . . 3 3 . Assimilate 1 | . . . . . . 1 . . Botnet 5 | . 1 . . . . 1 3 . Detonate 1 | . . . . . . 1 . . Fabricators . | . . . . . . . . . Repair Stations . | . . . . . . . . . Recycling Units . | . . . . . . . . . Scanalyzers . | . . . . . . . . . Garrison Access . | . . . . . . . . . Data Cores Recovered 1 | . . . . . . . 1 . Used 1 | . . . . . . . 1 . Hacking Detections 16 | . 2 . . . . 6 8 . Full Trace Events 3 | . . . . . . . 3 . Feedback Events 1 | . . . . . . . 1 . Hackware Fried 1 | . . . . . . . 1 . Feedback Blocked . | . . . . . . . . . Robot Schematics Acquired . | . . . . . . . . . Robots Built . | . . . . . . . . . Authchips . | . . . . . . . . . Time . | . . . . . . . . . Total Robot Build Rating . | . . . . . . . . . Part Schematics Acquired 1 | . . . . . . 1 . . Parts Built 1 | . . . . . . . 1 . Authchips . | . . . . . . . . . Time 47 | . . . . . . . 47 . Total Part Build Rating 5 | . . . . . . . 5 . Parts Repaired 1 | . . . . . . 1 . . Time 26 | . . . . . . 26 . . Parts Recycled . | . . . . . . . . . Recycled Matter . | . . . . . . . . . Retrieved Matter . | . . . . . . . . . Retrieved Components . | . . . . . . . . . Parts Scanalyzed . | . . . . . . . . . Part Schematics Acquired . | . . . . . . . . . Parts Damaged . | . . . . . . . . . Bothacking | -11 -10 -10 -10 -9 -8 -8 -7 -6 ------------ Run | Yrd Mat Min Exi Min Mat Sto Fac Fac Used RIF Installer . | . . . . . . . . . Robots Hacked . | . . . . . . . . . Non-combat . | . . . . . . . . . Combat . | . . . . . . . . . Robot Hacks Applied . | . . . . . . . . . Relay Couplers Released . | . . . . . . . . . Fabnet Peak Effective % . | . . . . . . . . . Robots Rewired . | . . . . . . . . . Allies Hacked . | . . . . . . . . . Hacks Repelled . | . . . . . . . . . Allies | -11 -10 -10 -10 -9 -8 -8 -7 -6 -------- Run | Yrd Mat Min Exi Min Mat Sto Fac Fac Total Allies 11 | . . 3 . . . 8 . . Largest Group 8 | . . 3 . . . 8 . . Highest-Rated Group 128 | . . 73 . . . 128 . . Highest-Rated Ally 31 | . . 31 . . . 16 . . Total Orders . | . . . . . . . . . Ally Attacks 83 | . . 28 . . . 55 . . Total Damage 1140 | . . 418 . . . 722 . . Kills 15 | . . 6 . . . 9 . . Allies Corrupted . | . . . . . . . . . Allies Melted . | . . . . . . . . . Intel | -11 -10 -10 -10 -9 -8 -8 -7 -6 ------- Run | Yrd Mat Min Exi Min Mat Sto Fac Fac Robot Analysis Total . | . . . . . . . . . Derelict Logs Recovered 2 | . . . . 2 . . . . Drone Launches . | . . . . . . . . . Drone Recoveries . | . . . . . . . . . Exploration | -11 -10 -10 -10 -9 -8 -8 -7 -6 ------------- Run | Yrd Mat Min Exi Min Mat Sto Fac Fac Turns Passed 3398 | 69 407 218 325 138 55 880 998 308 Spaces Moved 4937 | 55 316 302 837 279 115 958 1861 214 Core 296 | 18 . . . . . 6 194 78 Treads . | . . . . . . . . . Legs 241 | 37 204 . . . . . . . Wheels . | . . . . . . . . . Hover 87 | . . . . . . 87 . . Flight 4313 | . 112 302 837 279 115 865 1667 136 Fastest Speed 29 | 50 37 37 37 37 31 31 29 32 Average Speed 41 | 97 92 37 37 37 32 39 35 41 Slowest Speed 150 | 120 120 37 117 37 34 117 150 150 Overloaded Moves . | . . . . . . . . . Propulsion Burnouts . | . . . . . . . . . Robots Hopped 4 | . 3 1 . . . . . . Cave-ins Triggered . | . . . . . . . . . Exploration Rate (%) 42 | 4 47 55 94 55 11 82 26 4 Regions Visited 8 Branch Regions 4 Pre-discovered Areas 1 | . . . 1 . . . . . Known Exits Taken 4 | . 1 . . 1 1 1 . . Unknown Exits Taken 4 | 1 . 1 1 . . . 1 . Scrap Searched 2 | . . 1 . 1 . . . . Spaces Dug 15 | . . . . . . 15 . . Terrain Destroyed 34 | . . . . . . 34 . . Melee 5 | . . . . . . 5 . . Projectile 10 | . . . . . . 10 . . AOE 19 | . . . . . . 19 . . Terrain Rammed . | . . . . . . . . . Walls Destroyed . | . . . . . . . . . Machines Disabled . | . . . . . . . . . Actions | -11 -10 -10 -10 -9 -8 -8 -7 -6 --------- Run | Yrd Mat Min Exi Min Mat Sto Fac Fac Total 6082 | 69 381 387 848 305 131 1388 2172 401 Wait 828 | . 19 71 3 10 7 342 223 153 Move 4921 | 54 309 299 836 278 114 957 1860 214 Hop 4 | . 3 1 . . . . . . Pick Up 49 | 6 10 2 2 4 2 15 7 1 Fast Attach 18 | 3 3 . . . . 3 9 . Attach 37 | 4 1 . . 2 5 10 12 3 Detach 12 | . . . 1 . 1 3 7 . Swap 15 | 1 5 1 1 . 2 5 . . Drop 29 | 1 7 2 3 2 . 2 12 . Fire 48 | . 23 11 2 . . 10 1 1 Melee 92 | . . . . 9 . 41 23 19 Ram 10 | . . . . . . . . 10 Kick 1 | . 1 . . . . . . . Crush . | . . . . . . . . . Escape Stasis 18 | . . . . . . . 18 . Rewire . | . . . . . . . . . Trap . | . . . . . . . . . Miscellaneous . | . . . . . . . . . Route ------- -11/Scrapyard -10/Materials -10/Mines -10/Exiles (discovered 2 exits: *Min x2) -9/Mines (discovered 2 exits: *Mat x2) -8/Materials (discovered 3 exits: Fac / *Sto x2) -8/Storage (discovered 2 exits: *Fac / Rec) -7/Factory (discovered 2 exits: [*Fac] / [*Low]) -6/Factory History --------- Turn | Location | Event 17 | -11/Scrapyard | Discovered new exit (range 15) 70 | -11/Scrapyard | Entered Materials 103 | -10/Materials | Identified exit to Mines 334 | -10/Materials | Build established: Mutant 477 | -10/Materials | Entered Mines 480 | -10/Mines | Received a Mining Laser from a helpful Derelict 693 | -10/Mines | Deemed a non-threat by the Exiles lab entrance 693 | -10/Mines | Discovered new exit (range 5) 695 | -10/Mines | Entered Exiles 711 | -10/Exiles | Discovered new exit (range 15) 719 | -10/Exiles | Met 8R-AWN 728 | -10/Exiles | Met EX-HEX 750 | -10/Exiles | Met EX-DEC 764 | -10/Exiles | Learned location of Zion (-6) 786 | -10/Exiles | Discovered new exit (range 14) 823 | -10/Exiles | Visited The Gauntlet 888 | -10/Exiles | Met EX-BIN 899 | -10/Exiles | Aligned with FarCom system 899 | -10/Exiles | Given EX-Vault access code 923 | -10/Exiles | Opened EX-Vault 927 | -10/Exiles | Found Prototype Slashing Weapon 928 | -10/Exiles | Identified Longsword +1 948 | -10/Exiles | Warned to stay clear of 0b10 Research branches 1020 | -10/Exiles | Left Exiles lab with Longsword +1 1020 | -10/Exiles | Entered Mines 1036 | -9/Mines | Identified exit to Materials 1056 | -9/Mines | Learned Materials emergency access door positions 1129 | -9/Mines | Learned 8 Materials zone layouts 1136 | -9/Mines | Found a hidden stash of uninstalled traps 1158 | -9/Mines | Entered Materials 1158 | -8/Materials | Evolved 4 slots: Propulsion x2, Utility x2 1159 | -8/Materials | Identified exit to Storage 1159 | -8/Materials | Identified exit to Factory 1213 | -8/Materials | Entered Storage 1261 | -8/Storage | Repaired Mining Laser 1530 | -8/Storage | Build established: Scavenger-Mutant 1705 | -8/Storage | Core integrity fell below 50% 1736 | -8/Storage | Lost 5 parts (1p3n1u) 1758 | -8/Storage | Assisted by bots powering up and referring to "LRC-V3" 1869 | -8/Storage | Lost 5 allies 1967 | -8/Storage | Identified exit to Recycling 1990 | -8/Storage | Core integrity fell below 20% 2019 | -8/Storage | Lost 3 allies 2086 | -8/Storage | Discovered exit to Factory (range 15) 2093 | -8/Storage | Entered Factory 2093 | -7/Factory | Evolved 2 slots: Utility x2 2171 | -7/Factory | System Shield fried by hacking feedback 2197 | -7/Factory | Discovered new exit (range 16) 2237 | -7/Factory | Lost 3 parts (2n1u) 2417 | -7/Factory | Fabricated Cloaking Device (x1) 2490 | -7/Factory | Build established: Mutant 2667 | -7/Factory | Discovered new exit (range 15) 2739 | -7/Factory | Garrison activated, responded to threat 2824 | -7/Factory | Build established: Scavenger-Sprinter 3091 | -7/Factory | Entered another Factory area 3091 | -6/Factory | Evolved 2 slots: Utility x2 3331 | -6/Factory | Core integrity fell below 50% 3355 | -6/Factory | Lost 9 parts (1p3n4u1w) 3381 | -6/Factory | Core integrity fell below 20% 3399 | -6/Factory | Destroyed by S-27 Virus with Autogun Last Messages --------------- 03351_ R-10 Processor collects Flexi-carbon Leg. 03353_ G-50 Soldier destroyed. 03355_ R-10 Processor collects Adv. Heat Sink. 03359_ G-50 Soldier destroyed. 03360_ Acquired 10 matter. 03362_ M-28 Smith fits Backup Laser III on G-50 Soldier. 03363_ Greatsword destroyed. 03375_ Slammed into S-27 Virus. 03380_ S-27 Virus destroyed. 03381_ Slammed into S-27 Virus. 03382_ Fusion Modulator explodes. 03382_ S-27 Virus destroyed. 03383_ Slammed into S-27 Virus. 03383_ Hacking Suite destroyed. 03383_ System corrupted by crushing effect (+3). 03384_ Slammed into S-27 Virus. 03386_ Destabilizing: Core damaged (-42). 03394_ Acquired Hvy. Flak Cannon. 03397_ S-27 Virus knocked back. [Achievement: 5k Club] Map ----- +----------------------------------------------------+ | | | | | | | | | | | | | | | | | | | | | | | ?????????????????????????????????????????????????? | | ?????????????????????????????????????????????????? | | ?????????????????????????????????????????????????? | | ?????????????????????????????????????????????????? | | ?????????????????????????????????????????????????? | | ?????????????????????????????????????????????????? | | ???????????????????????????###???????????????????? | | ??????????????????????????? ???????????????????? | | ???????????????????????????# #???????????????????? | | ?????????????????????####### #???????????????????? | | ?????????????????????# !!!## #???????????????????? | | ?????????????????????# !! ## #??########+###?????? | | ?????????????????????# !! ## ##?# #?????? | | ?????????????????????# # ### #?????? | | ?????????????????????# @/ s g #?????? | | ?????????????????????# #s ###% #?????? | | ?????????????????????#######+##?#% #?????? | | ????????????????????????????????#g ######? | | ????????????????????????????????#% #? | | ????????????????????????????????# % #? | | ????????????????????????????????#%% % "" #? | | ????????????????????????????????#[ """#? | | ???????????????????????????#+#### F"#? | | ???????????????????????????# % """#? | | ???????????????????????????# Y "" #? | | ???????????????????????????# ## | | ??????????????################ | | ??????????????# ! # | | ??????????????# / "" | | ??????????????# """"" ####""" " | | ??????????????# """" ""T"" #???## ## | | ??????????????# """= """"" #?????#### | | ??????????????# %%% #????????# | | ????????# #####+################??# !%* | | ????????# =%[! #??# ! | | ????????+ %= #### | | ????????# | | ????????# ###+########################### | | ????????## ???????????????################# | +----------------------------------------------------+ Best States ------------- Heat Dissipation 37 Energy Generation 14 Energy Capacity 160 Matter Stores 300 Matter Capacity 300 Sight Range 16 Terrain Scan Range 16 Terrain Scan Density 10 ECM Strength 2 Cloak Strength 2 Evasion (%) 64 Melee Accuracy 6 Core Analysis 6 Offensive Hacking 10 Defensive Hacking 10 Authchip Count 2 Item Schematics ----------------- Cloaking Device | -8/Storage | Hacked Robot Schematics ------------------ None Fabricated ------------ Cloaking Device | x1 | -7/Factory Alien Tech Used ----------------- None Achievements -------------- 5k Club Close Call Just What I Needed Librarian Made in Tau Ceti IV Quantum Hacking The More The Merrier Challenges ------------ None Game ------ Seed RagnarokGunTube Manual? 0 Play Time 01:12:58 Cumulative 8.9 hours Start 2024.04.14 @ 15:00:44 End 2024.04.14 @ 16:12:48 Sessions 1 Manual Loads 0 Difficulty Rogue Special Mode None Game No. 24 Rogue 24 Adventurer 0 Explorer 0 Win Type - Total 0 Types 0/0/0/0/0/0/0/0/0 Lore% 14 Gallery% 11 Achievement% 15 Wizard Run 0 Options --------- Layout 1 ASCII 0 Keyboard 0 Movement Arrows Keybinds 0 Fullscreen 1 Font 32/SmallcapsGlow Map View 77x35 Zoom Use 0% Tactical HUD 1 Map Filters NONE Filters NONE Steam 1 RUN: 6c8ffaa2-c25b-4188-85b6-96ff3921f64b